[Event "Titled Tuesday Blitz June 20 Early 2023"]
[White "Martinez Alcantara, Jose Eduardo"]
[Black "Jones, Gawain C B"]
[WhiteFideId "3805662"]
[BlackFideId "409561"]
[WhiteElo "2711"]
[BlackElo "2645"]
[Result "0-1"]
[Round "11"]
[TimeControl "180+2"]
[Date "2023.06.20"]
[WhiteClock "0:00:49"]
[BlackClock "0:00:10"]
[Board "5"]

1. e4 {[%clk 0:03:00]}  e5 {[%clk 0:02:57]} 2. Nf3 {[%clk 0:03:01]}  Nc6 {[%clk 0:02:57]} 3. Bb5 {[%clk 0:03:00]}  a6 {[%clk 0:02:57]} 4. Ba4 {[%clk 0:03:01]}  Nf6 {[%clk 0:02:58]} 5. d3 {[%clk 0:03:02]}  d6 {[%clk 0:02:58]} 6. c3 {[%clk 0:03:02]}  g6 {[%clk 0:02:58]} 7. h3 {[%clk 0:03:02]}  Bg7 {[%clk 0:02:58]} 8. Be3 {[%clk 0:03:03]}  O-O {[%clk 0:02:58]} 9. Nbd2 {[%clk 0:03:03]}  Nd7 {[%clk 0:02:55]} 10. d4 {[%clk 0:03:03]}  f5 {[%clk 0:02:51]} 11. Bb3+ {[%clk 0:02:25]}  Kh8 {[%clk 0:02:51]} 12. exf5 {[%clk 0:02:26]}  gxf5 {[%clk 0:02:51]} 13. Ng5 {[%clk 0:01:44]}  f4 {[%clk 0:02:19]} 14. Nxh7 {[%clk 0:01:31]}  fxe3 {[%clk 0:02:06]} 15. Qh5 {[%clk 0:01:31]}  exd2+ {[%clk 0:02:03]} 16. Kd1 {[%clk 0:01:32]}  Qe8 {[%clk 0:01:41]} 17. Qh4 {[%clk 0:01:32]}  Rf4 {[%clk 0:01:22]} 18. g4 {[%clk 0:01:32]}  Qg6 {[%clk 0:01:09]} 19. Nf6+ {[%clk 0:01:33]}  Qh6 {[%clk 0:01:05]} 20. Nh5 {[%clk 0:01:33]}  Nf6 {[%clk 0:00:59]} 21. Nxf4 {[%clk 0:01:30]}  exf4 {[%clk 0:00:57]} 22. Qxh6+ {[%clk 0:01:26]}  Bxh6 {[%clk 0:00:58]} 23. f3 {[%clk 0:01:27]}  Na5 {[%clk 0:00:52]} 24. Kxd2 {[%clk 0:01:26]}  Nxb3+ {[%clk 0:00:52]} 25. axb3 {[%clk 0:01:27]}  Be6 {[%clk 0:00:51]} 26. Rae1 {[%clk 0:01:27]}  Bxb3 {[%clk 0:00:49]} 27. Re7 {[%clk 0:01:27]}  Nd5 {[%clk 0:00:48]} 28. Rd7 {[%clk 0:01:27]}  Ba4 {[%clk 0:00:43]} 29. Rf7 {[%clk 0:01:26]}  Be8 {[%clk 0:00:20]} 30. Rf5 {[%clk 0:01:26]}  Ne3 {[%clk 0:00:20]} 31. Rf6 {[%clk 0:01:22]}  Kg7 {[%clk 0:00:18]} 32. Re6 {[%clk 0:01:22]}  Bg5 {[%clk 0:00:10]} 33. h4 {[%clk 0:01:19]}  Bf7 {[%clk 0:00:11]} 34. Re4 {[%clk 0:01:17]}  Rh8 {[%clk 0:00:11]} 35. b3 {[%clk 0:00:59]}  Bd5 {[%clk 0:00:10]} 36. hxg5 {[%clk 0:00:38]}  Rxh1 {[%clk 0:00:08]} 37. Re7+ {[%clk 0:00:38]}  Kg6 {[%clk 0:00:08]} 38. Rxc7 {[%clk 0:00:37]}  Bxf3 {[%clk 0:00:08]} 39. c4 {[%clk 0:00:37]}  Rd1+ {[%clk 0:00:08]} 40. Kc3 {[%clk 0:00:38]}  Nd5+ {[%clk 0:00:08]} 41. cxd5 {[%clk 0:00:37]}  Rc1+ {[%clk 0:00:09]} 42. Kd3 {[%clk 0:00:38]}  Rxc7 {[%clk 0:00:09]} 43. b4 {[%clk 0:00:39]}  Bxg4 {[%clk 0:00:09]} 44. b5 {[%clk 0:00:40]}  Bf5+ {[%clk 0:00:09]} 45. Ke2 {[%clk 0:00:41]}  axb5 {[%clk 0:00:09]} 46. Kf3 {[%clk 0:00:42]}  b4 {[%clk 0:00:10]} 47. Kxf4 {[%clk 0:00:43]}  b3 {[%clk 0:00:10]} 48. Kg3 {[%clk 0:00:44]}  Rc4 {[%clk 0:00:10]} 49. Kf3 {[%clk 0:00:44]}  Rxd4 {[%clk 0:00:10]} 50. Ke3 {[%clk 0:00:45]}  Rc4 {[%clk 0:00:10]} 51. Kf3 {[%clk 0:00:46]}  b2 {[%clk 0:00:10]} 52. Kg3 {[%clk 0:00:47]}  b1=Q {[%clk 0:00:10]} 53. Kh2 {[%clk 0:00:47]}  Qb3 {[%clk 0:00:09]} 54. Kg2 {[%clk 0:00:48]}  Rc2+ {[%clk 0:00:09]} 55. Kg1 {[%clk 0:00:49]}  Qb1# {[%clk 0:00:10]} 0-1


[Site "https://www.chess.com"]

[Event "Titled Tuesday Blitz June 20 Early 2023"]
[White "Andreikin, Dmitry"]
[Black "Makarian, Rudik"]
[WhiteFideId "4158814"]
[BlackFideId "44105681"]
[WhiteElo "2736"]
[BlackElo "2451"]
[Result "1-0"]
[Round "11"]
[TimeControl "180+2"]
[Date "2023.06.20"]
[WhiteClock "0:00:09"]
[BlackClock "0:00:04"]
[Board "6"]

1. e4 {[%clk 0:03:00]}  c5 {[%clk 0:02:58]} 2. Nc3 {[%clk 0:03:00]}  Nc6 {[%clk 0:02:59]} 3. Bb5 {[%clk 0:02:59]}  Nd4 {[%clk 0:02:59]} 4. Nf3 {[%clk 0:02:59]}  e6 {[%clk 0:02:53]} 5. O-O {[%clk 0:02:58]}  Nxb5 {[%clk 0:02:48]} 6. Nxb5 {[%clk 0:02:57]}  a6 {[%clk 0:02:49]} 7. Nc3 {[%clk 0:02:57]}  Ne7 {[%clk 0:02:39]} 8. d4 {[%clk 0:02:56]}  cxd4 {[%clk 0:02:37]} 9. Nxd4 {[%clk 0:02:56]}  Nc6 {[%clk 0:02:38]} 10. Nxc6 {[%clk 0:02:54]}  bxc6 {[%clk 0:02:39]} 11. e5 {[%clk 0:02:55]}  Be7 {[%clk 0:02:33]} 12. Ne4 {[%clk 0:02:52]}  O-O {[%clk 0:02:30]} 13. Qh5 {[%clk 0:02:47]}  Rb8 {[%clk 0:02:18]} 14. b3 {[%clk 0:02:45]}  c5 {[%clk 0:01:59]} 15. Bg5 {[%clk 0:02:38]}  Bb7 {[%clk 0:01:56]} 16. Bxe7 {[%clk 0:02:27]}  Qxe7 {[%clk 0:01:55]} 17. Nd6 {[%clk 0:02:27]}  Bc6 {[%clk 0:01:44]} 18. Rad1 {[%clk 0:02:24]}  f5 {[%clk 0:01:42]} 19. Rd3 {[%clk 0:02:17]}  f4 {[%clk 0:01:37]} 20. Rfd1 {[%clk 0:01:58]}  c4 {[%clk 0:01:05]} 21. Rh3 {[%clk 0:01:17]}  g6 {[%clk 0:00:55]} 22. Qh6 {[%clk 0:01:16]}  cxb3 {[%clk 0:00:53]} 23. axb3 {[%clk 0:01:17]}  Qg7 {[%clk 0:00:42]} 24. Qg5 {[%clk 0:01:11]}  a5 {[%clk 0:00:39]} 25. Rh6 {[%clk 0:01:05]}  a4 {[%clk 0:00:34]} 26. bxa4 {[%clk 0:01:06]}  Bxa4 {[%clk 0:00:31]} 27. Ne4 {[%clk 0:01:00]}  Rf5 {[%clk 0:00:25]} 28. Nf6+ {[%clk 0:00:59]}  Qxf6 {[%clk 0:00:16]} 29. Qxf6 {[%clk 0:00:57]}  Rxf6 {[%clk 0:00:16]} 30. exf6 {[%clk 0:00:57]}  Bxc2 {[%clk 0:00:17]} 31. Rc1 {[%clk 0:00:55]}  Bf5 {[%clk 0:00:16]} 32. f3 {[%clk 0:00:48]}  Rf8 {[%clk 0:00:11]} 33. Rc7 {[%clk 0:00:39]}  e5 {[%clk 0:00:11]} 34. Rc5 {[%clk 0:00:40]}  d6 {[%clk 0:00:10]} 35. Rc7 {[%clk 0:00:40]}  Rf7 {[%clk 0:00:06]} 36. Rxf7 {[%clk 0:00:39]}  Kxf7 {[%clk 0:00:07]} 37. Rxh7+ {[%clk 0:00:39]}  Kxf6 {[%clk 0:00:08]} 38. g4 {[%clk 0:00:30]}  fxg3 {[%clk 0:00:07]} 39. hxg3 {[%clk 0:00:30]}  g5 {[%clk 0:00:07]} 40. Rh6+ {[%clk 0:00:28]}  Bg6 {[%clk 0:00:07]} 41. Kf2 {[%clk 0:00:28]}  d5 {[%clk 0:00:07]} 42. Rh8 {[%clk 0:00:26]}  d4 {[%clk 0:00:08]} 43. Rf8+ {[%clk 0:00:25]}  Ke6 {[%clk 0:00:07]} 44. Rg8 {[%clk 0:00:25]}  Kf6 {[%clk 0:00:07]} 45. Rd8 {[%clk 0:00:25]}  Bf7 {[%clk 0:00:06]} 46. Rd6+ {[%clk 0:00:24]}  Be6 {[%clk 0:00:07]} 47. Rb6 {[%clk 0:00:24]}  Ke7 {[%clk 0:00:06]} 48. Rb5 {[%clk 0:00:21]}  Kf6 {[%clk 0:00:06]} 49. Ra5 {[%clk 0:00:21]}  Bd7 {[%clk 0:00:06]} 50. Ke2 {[%clk 0:00:21]}  Bf5 {[%clk 0:00:05]} 51. Ra6+ {[%clk 0:00:20]}  Kf7 {[%clk 0:00:06]} 52. Rb6 {[%clk 0:00:20]}  Bg6 {[%clk 0:00:06]} 53. Kd2 {[%clk 0:00:19]}  Bf5 {[%clk 0:00:05]} 54. Rb5 {[%clk 0:00:17]}  Kf6 {[%clk 0:00:05]} 55. Rb8 {[%clk 0:00:17]}  Ke6 {[%clk 0:00:04]} 56. g4 {[%clk 0:00:14]}  Bg6 {[%clk 0:00:05]} 57. Rg8 {[%clk 0:00:13]}  Kf6 {[%clk 0:00:05]} 58. Rb8 {[%clk 0:00:13]}  e4 {[%clk 0:00:04]} 59. Rb6+ {[%clk 0:00:13]}  Kf7 {[%clk 0:00:05]} 60. fxe4 {[%clk 0:00:12]}  Bxe4 {[%clk 0:00:05]} 61. Rb4 {[%clk 0:00:12]}  Kf6 {[%clk 0:00:02]} 62. Rxd4 {[%clk 0:00:10]}  Bb1 {[%clk 0:00:03]} 63. Rd5 {[%clk 0:00:09]}  Ba2 {[%clk 0:00:03]} 64. Rd4 {[%clk 0:00:08]}  Be6 {[%clk 0:00:03]} 65. Ke3 {[%clk 0:00:08]}  Ke5 {[%clk 0:00:04]} 66. Re4+ {[%clk 0:00:08]}  Kf6 {[%clk 0:00:04]} 67. Ra4 {[%clk 0:00:09]}  Ke5 {[%clk 0:00:04]} 68. Ra5+ {[%clk 0:00:09]}  Kf6 {[%clk 0:00:05]} 69. Kf3 {[%clk 0:00:09]}  Bd7 {[%clk 0:00:05]} 70. Ra6+ {[%clk 0:00:09]}  Ke5 {[%clk 0:00:05]} 71. Rg6 {[%clk 0:00:08]}  Be6 {[%clk 0:00:02]} 72. Rxg5+ {[%clk 0:00:08]}  Kf6 {[%clk 0:00:03]} 73. Kf4 {[%clk 0:00:08]}  Bf7 {[%clk 0:00:03]} 74. Rf5+ {[%clk 0:00:08]}  Kg6 {[%clk 0:00:04]} 75. Rxf7 {[%clk 0:00:08]}  Kxf7 {[%clk 0:00:04]} 76. Kf5 {[%clk 0:00:09]} 1-0


[Site "https://www.chess.com"]

[Event "Titled Tuesday Blitz June 20 Early 2023"]
[White "Gurel, Ediz"]
[Black "Kollars, Dmitrij"]
[WhiteFideId "44507356"]
[BlackFideId "12909572"]
[WhiteElo "2352"]
[BlackElo "2584"]
[Result "0-1"]
[Round "11"]
[TimeControl "180+2"]
[Date "2023.06.20"]
[WhiteClock "0:00:05"]
[BlackClock "0:00:11"]
[Board "7"]

1. e4 {[%clk 0:03:00]}  e5 {[%clk 0:02:59]} 2. Nf3 {[%clk 0:02:58]}  Nc6 {[%clk 0:02:58]} 3. Bb5 {[%clk 0:02:58]}  a6 {[%clk 0:02:58]} 4. Bxc6 {[%clk 0:02:56]}  dxc6 {[%clk 0:02:58]} 5. O-O {[%clk 0:02:57]}  Qf6 {[%clk 0:02:57]} 6. d4 {[%clk 0:02:52]}  exd4 {[%clk 0:02:58]} 7. Bg5 {[%clk 0:02:51]}  Qd6 {[%clk 0:02:58]} 8. Nxd4 {[%clk 0:02:52]}  Be7 {[%clk 0:02:58]} 9. Bxe7 {[%clk 0:02:50]}  Nxe7 {[%clk 0:02:59]} 10. Nc3 {[%clk 0:02:50]}  Bd7 {[%clk 0:03:00]} 11. Nb3 {[%clk 0:02:47]}  O-O-O {[%clk 0:03:00]} 12. Qf3 {[%clk 0:02:48]}  Ng6 {[%clk 0:02:54]} 13. Rad1 {[%clk 0:02:48]}  Qe7 {[%clk 0:02:48]} 14. Qe3 {[%clk 0:02:48]}  Kb8 {[%clk 0:02:47]} 15. Nc5 {[%clk 0:02:45]}  Bc8 {[%clk 0:02:46]} 16. Nd3 {[%clk 0:02:45]}  Rhe8 {[%clk 0:02:44]} 17. Rfe1 {[%clk 0:02:36]}  b6 {[%clk 0:02:41]} 18. b4 {[%clk 0:02:27]}  Qf6 {[%clk 0:02:22]} 19. Na4 {[%clk 0:02:02]}  Qd4 {[%clk 0:02:16]} 20. Qg3 {[%clk 0:01:58]}  h5 {[%clk 0:02:06]} 21. h3 {[%clk 0:01:33]}  Rxe4 {[%clk 0:01:55]} 22. Rxe4 {[%clk 0:01:29]}  Qxe4 {[%clk 0:01:55]} 23. Nxb6 {[%clk 0:01:28]}  h4 {[%clk 0:01:35]} 24. Qh2 {[%clk 0:01:10]}  Nf4 {[%clk 0:01:10]} 25. Nxc8 {[%clk 0:01:05]}  Kxc8 {[%clk 0:01:11]} 26. Kh1 {[%clk 0:00:50]}  Qe2 {[%clk 0:00:53]} 27. Qxf4 {[%clk 0:00:39]}  Qxd1+ {[%clk 0:00:52]} 28. Kh2 {[%clk 0:00:40]}  Qxc2 {[%clk 0:00:35]} 29. Nc5 {[%clk 0:00:39]}  Qg6 {[%clk 0:00:35]} 30. Qc4 {[%clk 0:00:35]}  Rd5 {[%clk 0:00:17]} 31. Qxa6+ {[%clk 0:00:32]}  Kd8 {[%clk 0:00:17]} 32. Nb7+ {[%clk 0:00:25]}  Ke7 {[%clk 0:00:16]} 33. Qc4 {[%clk 0:00:22]}  Qf6 {[%clk 0:00:14]} 34. f4 {[%clk 0:00:15]}  g5 {[%clk 0:00:12]} 35. Qe4+ {[%clk 0:00:12]}  Kf8 {[%clk 0:00:12]} 36. fxg5 {[%clk 0:00:12]}  Qxg5 {[%clk 0:00:11]} 37. Nc5 {[%clk 0:00:05]}  Qg3+ {[%clk 0:00:11]} 0-1


[Site "https://www.chess.com"]

[Event "Titled Tuesday Blitz June 20 Early 2023"]
[White "Lazavik, Denis"]
[Black "Pap, Gyula"]
[WhiteFideId "13515110"]
[BlackFideId "725323"]
[WhiteElo "2560"]
[BlackElo "2519"]
[Result "1-0"]
[Round "11"]
[TimeControl "180+2"]
[Date "2023.06.20"]
[WhiteClock "0:00:08"]
[BlackClock "0:00:00"]
[Board "10"]

1. d4 {[%clk 0:02:55]}  d5 {[%clk 0:03:00]} 2. c4 {[%clk 0:02:55]}  e6 {[%clk 0:03:00]} 3. Nc3 {[%clk 0:02:55]}  Nf6 {[%clk 0:03:00]} 4. cxd5 {[%clk 0:02:54]}  exd5 {[%clk 0:03:01]} 5. Bg5 {[%clk 0:02:54]}  Bb4 {[%clk 0:03:01]} 6. e3 {[%clk 0:02:51]}  h6 {[%clk 0:03:01]} 7. Bh4 {[%clk 0:02:51]}  g5 {[%clk 0:03:01]} 8. Bg3 {[%clk 0:02:50]}  Ne4 {[%clk 0:03:00]} 9. a3 {[%clk 0:02:51]}  Bxc3+ {[%clk 0:02:54]} 10. bxc3 {[%clk 0:02:50]}  Nc6 {[%clk 0:02:39]} 11. Bd3 {[%clk 0:02:49]}  Bf5 {[%clk 0:02:28]} 12. Ne2 {[%clk 0:02:38]}  Qd7 {[%clk 0:02:24]} 13. h3 {[%clk 0:02:31]}  Nxg3 {[%clk 0:01:51]} 14. Nxg3 {[%clk 0:02:30]}  Bxd3 {[%clk 0:01:52]} 15. Qxd3 {[%clk 0:02:31]}  Na5 {[%clk 0:01:45]} 16. O-O {[%clk 0:02:29]}  O-O-O {[%clk 0:01:43]} 17. Rab1 {[%clk 0:02:28]}  Nc4 {[%clk 0:01:33]} 18. e4 {[%clk 0:02:27]}  c6 {[%clk 0:01:31]} 19. a4 {[%clk 0:02:19]}  h5 {[%clk 0:01:19]} 20. exd5 {[%clk 0:02:19]}  cxd5 {[%clk 0:01:19]} 21. Nf5 {[%clk 0:02:16]}  Kb8 {[%clk 0:00:58]} 22. Rb4 {[%clk 0:02:11]}  Rc8 {[%clk 0:00:50]} 23. Rfb1 {[%clk 0:02:11]}  Rc7 {[%clk 0:00:50]} 24. Ne3 {[%clk 0:02:08]}  Nxe3 {[%clk 0:00:47]} 25. Qxe3 {[%clk 0:02:09]}  f6 {[%clk 0:00:46]} 26. a5 {[%clk 0:02:08]}  Qd6 {[%clk 0:00:35]} 27. Rb5 {[%clk 0:02:07]}  Rhc8 {[%clk 0:00:33]} 28. R5b3 {[%clk 0:01:52]}  g4 {[%clk 0:00:27]} 29. h4 {[%clk 0:01:51]}  Ka8 {[%clk 0:00:22]} 30. Qd3 {[%clk 0:01:47]}  Qe6 {[%clk 0:00:20]} 31. g3 {[%clk 0:01:41]}  Qe4 {[%clk 0:00:16]} 32. Qb5 {[%clk 0:01:30]}  f5 {[%clk 0:00:17]} 33. R1b2 {[%clk 0:01:10]}  f4 {[%clk 0:00:14]} 34. Re2 {[%clk 0:01:09]}  Qf3 {[%clk 0:00:10]} 35. Re8 {[%clk 0:00:29]}  Qd1+ {[%clk 0:00:10]} 36. Kg2 {[%clk 0:00:28]}  Qf3+ {[%clk 0:00:09]} 37. Kg1 {[%clk 0:00:25]}  Qd1+ {[%clk 0:00:06]} 38. Kh2 {[%clk 0:00:25]}  fxg3+ {[%clk 0:00:05]} 39. fxg3 {[%clk 0:00:26]}  Qc2+ {[%clk 0:00:04]} 40. Re2 {[%clk 0:00:24]}  Qf5 {[%clk 0:00:02]} 41. a6 {[%clk 0:00:22]}  b6 {[%clk 0:00:03]} 42. c4 {[%clk 0:00:17]}  Qd7 {[%clk 0:00:02]} 43. cxd5 {[%clk 0:00:05]}  Qxb5 {[%clk 0:00:02]} 44. Rxb5 {[%clk 0:00:06]}  Rd7 {[%clk 0:00:02]} 45. d6 {[%clk 0:00:06]}  Rxd6 {[%clk 0:00:03]} 46. Rxh5 {[%clk 0:00:07]}  Rxd4 {[%clk 0:00:03]} 47. Rg5 {[%clk 0:00:04]}  Ra4 {[%clk 0:00:03]} 48. h5 {[%clk 0:00:05]}  Rh8 {[%clk 0:00:02]} 49. Ree5 {[%clk 0:00:04]}  Rxa6 {[%clk 0:00:01]} 50. Rxg4 {[%clk 0:00:05]}  Ra2+ {[%clk 0:00:02]} 51. Kh3 {[%clk 0:00:05]}  Rc2 {[%clk 0:00:02]} 52. Rg6 {[%clk 0:00:04]}  Kb7 {[%clk 0:00:02]} 53. h6 {[%clk 0:00:04]}  a5 {[%clk 0:00:02]} 54. Ree6 {[%clk 0:00:04]}  Rb2 {[%clk 0:00:03]} 55. g4 {[%clk 0:00:04]}  a4 {[%clk 0:00:03]} 56. Re7+ {[%clk 0:00:04]}  Ka6 {[%clk 0:00:04]} 57. g5 {[%clk 0:00:05]}  a3 {[%clk 0:00:04]} 58. Rgg7 {[%clk 0:00:06]}  a2 {[%clk 0:00:04]} 59. Ra7+ {[%clk 0:00:06]}  Kb5 {[%clk 0:00:05]} 60. Kg4 {[%clk 0:00:07]}  Kb4 {[%clk 0:00:05]} 61. Kh5 {[%clk 0:00:07]}  b5 {[%clk 0:00:05]} 62. Rgb7 {[%clk 0:00:07]}  Kc4 {[%clk 0:00:05]} 63. Rc7+ {[%clk 0:00:07]}  Kb3 {[%clk 0:00:05]} 64. h7 {[%clk 0:00:07]}  b4 {[%clk 0:00:03]} 65. g6 {[%clk 0:00:08]}  Rh2+ {[%clk 0:00:03]} 66. Kg5 {[%clk 0:00:08]}  Kb2 {[%clk 0:00:03]} 67. Rcb7 {[%clk 0:00:07]}  b3 {[%clk 0:00:03]} 68. Rb6 {[%clk 0:00:08]}  Kc2 {[%clk 0:00:02]} 69. Rc7+ {[%clk 0:00:07]}  Kb2 {[%clk 0:00:02]} 70. Ra7 {[%clk 0:00:07]}  Kc2 {[%clk 0:00:03]} 71. Ra3 {[%clk 0:00:07]}  Rg2+ {[%clk 0:00:02]} 72. Kh6 {[%clk 0:00:07]}  Rh2+ {[%clk 0:00:01]} 73. Kg7 {[%clk 0:00:08]}  R2xh7+ {[%clk 0:00:01]} 74. gxh7 {[%clk 0:00:08]}  Rxh7+ {[%clk 0:00:00]} 75. Kxh7 {[%clk 0:00:08]} 1-0


[Site "https://www.chess.com"]

[Event "Titled Tuesday Blitz June 20 Early 2023"]
[White "Aravindh, Chithambaram VR."]
[Black "Srihari L R"]
[WhiteFideId "5072786"]
[BlackFideId "46617116"]
[WhiteElo "2596"]
[BlackElo "2334"]
[Result "0-1"]
[Round "11"]
[TimeControl "180+2"]
[Date "2023.06.20"]
[WhiteClock "0:00:00"]
[BlackClock "0:00:09"]
[Board "15"]

1. g3 {[%clk 0:03:00]}  d5 {[%clk 0:02:58]} 2. Bg2 {[%clk 0:02:59]}  c6 {[%clk 0:02:57]} 3. f4 {[%clk 0:02:57]}  g6 {[%clk 0:02:54]} 4. Nf3 {[%clk 0:02:57]}  Bg7 {[%clk 0:02:55]} 5. O-O {[%clk 0:02:58]}  Nh6 {[%clk 0:02:54]} 6. d3 {[%clk 0:02:58]}  O-O {[%clk 0:02:53]} 7. c3 {[%clk 0:02:59]}  f6 {[%clk 0:02:53]} 8. e4 {[%clk 0:02:57]}  Nf7 {[%clk 0:02:54]} 9. Be3 {[%clk 0:02:55]}  e5 {[%clk 0:02:53]} 10. Nbd2 {[%clk 0:02:54]}  Be6 {[%clk 0:02:48]} 11. fxe5 {[%clk 0:02:47]}  fxe5 {[%clk 0:02:47]} 12. d4 {[%clk 0:02:40]}  Nd7 {[%clk 0:02:47]} 13. Qc2 {[%clk 0:02:23]}  Qe7 {[%clk 0:02:06]} 14. Rae1 {[%clk 0:02:21]}  Rae8 {[%clk 0:02:01]} 15. dxe5 {[%clk 0:01:39]}  dxe4 {[%clk 0:01:51]} 16. Nxe4 {[%clk 0:01:37]}  Nfxe5 {[%clk 0:01:29]} 17. Bg5 {[%clk 0:01:30]}  Nxf3+ {[%clk 0:01:17]} 18. Rxf3 {[%clk 0:01:29]}  Nf6 {[%clk 0:01:11]} 19. h4 {[%clk 0:00:32]}  Kh8 {[%clk 0:00:55]} 20. Qf2 {[%clk 0:00:23]}  Bf5 {[%clk 0:00:47]} 21. Rf4 {[%clk 0:00:09]}  h6 {[%clk 0:00:42]} 22. Bxf6 {[%clk 0:00:08]}  Bxf6 {[%clk 0:00:42]} 23. Rf1 {[%clk 0:00:03]}  Be5 {[%clk 0:00:39]} 24. Qxa7 {[%clk 0:00:03]}  Bxf4 {[%clk 0:00:35]} 25. Rxf4 {[%clk 0:00:04]}  g5 {[%clk 0:00:35]} 26. hxg5 {[%clk 0:00:05]}  hxg5 {[%clk 0:00:35]} 27. Qd4+ {[%clk 0:00:06]}  Kg8 {[%clk 0:00:24]} 28. Rf2 {[%clk 0:00:05]}  Bxe4 {[%clk 0:00:22]} 29. Re2 {[%clk 0:00:04]}  Qg7 {[%clk 0:00:17]} 30. Qxg7+ {[%clk 0:00:03]}  Kxg7 {[%clk 0:00:18]} 31. Bxe4 {[%clk 0:00:04]}  Re5 {[%clk 0:00:17]} 32. Bd3 {[%clk 0:00:03]}  Rxe2 {[%clk 0:00:16]} 33. Bxe2 {[%clk 0:00:04]}  Rd8 {[%clk 0:00:16]} 34. Kf2 {[%clk 0:00:03]}  Rd2 {[%clk 0:00:16]} 35. b4 {[%clk 0:00:03]}  Rxa2 {[%clk 0:00:16]} 36. Ke3 {[%clk 0:00:04]}  Kf6 {[%clk 0:00:13]} 37. Bd3 {[%clk 0:00:02]}  Rg2 {[%clk 0:00:13]} 38. Kf3 {[%clk 0:00:02]}  Rg1 {[%clk 0:00:13]} 39. c4 {[%clk 0:00:01]}  Ke5 {[%clk 0:00:12]} 40. b5 {[%clk 0:00:01]}  c5 {[%clk 0:00:12]} 41. Kg4 {[%clk 0:00:01]}  b6 {[%clk 0:00:09]} 42. Be2 {[%clk 0:00:01]}  Kd4 {[%clk 0:00:09]} 43. Kf5 {[%clk 0:00:02]}  Rxg3 {[%clk 0:00:09]} 44. Bf1 {[%clk 0:00:00]}  Rf3+ {[%clk 0:00:09]} 0-1


[Site "https://www.chess.com"]

[Event "Titled Tuesday Blitz June 20 Early 2023"]
[White "Rohith Krishna S"]
[Black "Ibarra Jerez, Jose Carlos"]
[WhiteFideId "46617051"]
[BlackFideId "2226332"]
[WhiteElo "2270"]
[BlackElo "2631"]
[Result "0-1"]
[Round "11"]
[TimeControl "180+2"]
[Date "2023.06.20"]
[WhiteClock "0:01:06"]
[BlackClock "0:00:44"]
[Board "17"]

1. d4 {[%clk 0:03:00]}  Nf6 {[%clk 0:03:00]} 2. c4 {[%clk 0:03:00]}  d6 {[%clk 0:03:00]} 3. Nc3 {[%clk 0:03:00]}  e5 {[%clk 0:03:00]} 4. dxe5 {[%clk 0:03:00]}  dxe5 {[%clk 0:03:01]} 5. Qxd8+ {[%clk 0:03:00]}  Kxd8 {[%clk 0:03:02]} 6. Bg5 {[%clk 0:03:00]}  Be6 {[%clk 0:03:01]} 7. O-O-O+ {[%clk 0:02:59]}  Nd7 {[%clk 0:03:02]} 8. Bxf6+ {[%clk 0:02:56]}  gxf6 {[%clk 0:03:02]} 9. e4 {[%clk 0:02:55]}  c6 {[%clk 0:03:02]} 10. Nge2 {[%clk 0:02:54]}  Bc5 {[%clk 0:02:58]} 11. f3 {[%clk 0:02:53]}  Bxc4 {[%clk 0:02:55]} 12. Ng3 {[%clk 0:02:52]}  Be6 {[%clk 0:02:53]} 13. Nd5 {[%clk 0:02:40]}  Kc8 {[%clk 0:02:41]} 14. Kb1 {[%clk 0:02:35]}  h5 {[%clk 0:02:38]} 15. Nc3 {[%clk 0:02:24]}  h4 {[%clk 0:02:36]} 16. Nf5 {[%clk 0:02:25]}  Kc7 {[%clk 0:02:35]} 17. Bd3 {[%clk 0:02:16]}  Rag8 {[%clk 0:02:26]} 18. Rd2 {[%clk 0:02:16]}  Bb4 {[%clk 0:02:03]} 19. Rc1 {[%clk 0:02:10]}  Bxc3 {[%clk 0:02:03]} 20. Rxc3 {[%clk 0:02:11]}  Bxf5 {[%clk 0:02:03]} 21. exf5 {[%clk 0:02:10]}  Rg5 {[%clk 0:02:02]} 22. b4 {[%clk 0:01:58]}  Rhg8 {[%clk 0:01:58]} 23. Rc4 {[%clk 0:01:51]}  Rxg2 {[%clk 0:01:52]} 24. Rxg2 {[%clk 0:01:51]}  Rxg2 {[%clk 0:01:52]} 25. Rxh4 {[%clk 0:01:52]}  Nb6 {[%clk 0:01:52]} 26. Be4 {[%clk 0:01:41]}  Na4 {[%clk 0:01:48]} 27. Rh7 {[%clk 0:01:37]}  Nc3+ {[%clk 0:01:48]} 28. Kc1 {[%clk 0:01:38]}  Nxa2+ {[%clk 0:01:36]} 29. Kd1 {[%clk 0:01:38]}  Nc3+ {[%clk 0:01:32]} 30. Ke1 {[%clk 0:01:39]}  Nxe4 {[%clk 0:01:33]} 31. fxe4 {[%clk 0:01:39]}  Rg4 {[%clk 0:01:32]} 32. Rxf7+ {[%clk 0:01:35]}  Kb6 {[%clk 0:01:33]} 33. Rxf6 {[%clk 0:01:35]}  Rxe4+ {[%clk 0:01:33]} 34. Kf2 {[%clk 0:01:35]}  Rxb4 {[%clk 0:01:32]} 35. Kg3 {[%clk 0:01:36]}  a5 {[%clk 0:01:29]} 36. Rf8 {[%clk 0:01:31]}  a4 {[%clk 0:01:10]} 37. h4 {[%clk 0:01:32]}  Kb5 {[%clk 0:00:55]} 38. h5 {[%clk 0:01:10]}  a3 {[%clk 0:00:55]} 39. Re8 {[%clk 0:01:10]}  a2 {[%clk 0:00:44]} 40. Rxe5+ {[%clk 0:01:06]}  Kb6 {[%clk 0:00:44]} 0-1


[Site "https://www.chess.com"]